bitfinex-derivatives/quotes_BTCF0:USTF0_20241210
["timestamp","ask_amount","ask_price","bid_price","bid_amount"]
[1733824826650,0.101,97600.0,97599.0,0.01032176]
[1733824826850,0.1,97600.0,97599.0,0.01232176]
[1733824827865,0.1,97600.0,97599.0,0.00912006]
[1733824828052,0.1,97600.0,97599.0,0.01032162]
[1733824828254,0.1,97600.0,97599.0,0.01432162]
[1733824828757,0.1,97600.0,97599.0,0.00732162]
[1733824828969,0.1,97600.0,97599.0,0.01432162]
[1733824829568,0.051195,97641.0,97599.0,0.01432162]
[1733824829569,0.0314,97619.0,97611.0,0.05121]
[1733824829870,0.0314,97619.0,97611.0,0.77605144]
[1733824831159,0.0638,97627.0,97611.0,0.77705144]
[1733824832067,0.0638,97627.0,97611.0,0.77905144]
[1733824832364,0.0638,97627.0,97626.0,0.051203]
[1733824832567,0.0638,97627.0,97626.0,0.412003]
[1733824832766,0.0638,97627.0,97626.0,0.412043]
[1733824833282,0.0638,97627.0,97626.0,0.36084]
[1733824833860,0.0648,97627.0,97626.0,0.36084]
[1733824838165,0.0648,97627.0,97626.0,0.36404061]
[1733824838975,0.0648,97627.0,97626.0,0.36084]
[1733824839271,0.0648,97627.0,97626.0,0.36404061]
[1733824840180,0.051206,97620.0,97619.0,0.3608]
[1733824840372,0.051206,97620.0,97601.0,0.5065]
[1733824840373,0.0648,97627.0,97609.0,0.3608]
[1733824840569,0.051211,97610.0,97609.0,0.3608]
[1733824842973,0.051211,97610.0,97609.0,0.3628]
[1733824843475,0.051211,97610.0,97609.0,0.3648]
[1733824843671,0.051211,97610.0,97609.0,0.3628]
[1733824844176,0.051211,97610.0,97609.0,0.3608]
[1733824844476,0.051211,97610.0,97609.0,0.3618]
[1733824851180,0.051211,97610.0,97609.0,0.40661702]
[1733824852585,0.051211,97610.0,97609.0,0.59020299]
[1733824853982,0.051211,97610.0,97609.0,0.40661702]
[1733824855380,0.051211,97610.0,97609.0,0.3618]
[1733824855979,0.051211,97610.0,97609.0,0.6068519]
[1733824856181,0.051211,97610.0,97609.0,0.40661702]
[1733824856882,0.051211,97610.0,97609.0,0.40561702]
[1733824857081,0.051211,97610.0,97609.0,0.40661702]
[1733824858480,0.051211,97610.0,97609.0,0.65166892]
[1733824858878,0.051211,97610.0,97609.0,0.40661702]
[1733824861682,0.051211,97610.0,97609.0,0.59034577]
[1733824862396,0.051211,97610.0,97609.0,0.40661702]
[1733824863085,0.051208,97615.0,97614.0,0.051209]
[1733824863288,0.051208,97615.0,97614.0,0.09602602]
[1733824864187,8e-05,97620.0,97619.0,0.051206]
[1733824864395,8e-05,97620.0,97619.0,0.412006]
[1733824864593,8e-05,97620.0,97619.0,0.412046]
[1733824864791,8e-05,97620.0,97619.0,0.45685852]
[1733824864991,8e-05,97620.0,97619.0,0.45685731]
[1733824866390,0.00108,97620.0,97619.0,0.45685731]
[1733824867391,0.00108,97620.0,97619.0,0.412046]
[1733824867697,0.00108,97620.0,97619.0,1.04714096]
[1733824867896,0.00108,97620.0,97619.0,0.74000501]
[1733824870401,0.00108,97620.0,97619.0,0.74320558]
[1733824871596,0.00108,97620.0,97619.0,0.72147174]
[1733824872806,0.00108,97620.0,97619.0,0.74242711]
[1733824873490,0.00108,97620.0,97619.0,1.0485767]
[1733824874004,0.00108,97620.0,97619.0,0.7662068]
[1733824874401,0.00108,97620.0,97619.0,0.76300623]
[1733824875902,0.00108,97620.0,97619.0,1.04587238]
[1733824876497,0.00108,97620.0,97619.0,0.76300623]
[1733824876708,0.00108,97620.0,97619.0,0.45685664]
[1733824877096,0.00108,97620.0,97619.0,0.051246]
[1733824877306,0.00108,97620.0,97619.0,0.412046]
[1733824877502,0.00108,97620.0,97619.0,0.45685403]
[1733824878202,0.00108,97620.0,97619.0,0.412046]
[1733824879111,0.052286,97620.0,97619.0,0.412046]
[1733824879404,0.052286,97620.0,97619.0,0.70188527]
[1733824879601,0.052286,97620.0,97619.0,0.45685649]
[1733824880313,0.00108,97620.0,97619.0,0.45685649]
[1733824882005,0.00108,97620.0,97619.0,0.412046]
[1733824884397,0.00108,97620.0,97619.0,0.65707478]
[1733824886909,0.00108,97620.0,97619.0,0.412046]
[1733824887504,0.00108,97620.0,97619.0,0.65707478]
[1733824889506,0.00108,97620.0,97619.0,0.412046]
[1733824890106,0.052286,97620.0,97619.0,0.412046]
[1733824891329,0.413086,97620.0,97619.0,0.18385829]
[1733824891632,0.05121,97611.0,97610.0,0.3608]
[1733824892006,0.05121,97611.0,97610.0,0.40561329]
[1733824892322,0.05121,97611.0,97610.0,0.40561929]
[1733824892505,0.05129,97611.0,97610.0,0.40561929]
[1733824892808,0.05969604,97611.0,97610.0,0.40661929]
[1733824893116,0.05969604,97611.0,97610.0,0.3618]
[1733824894114,0.05129,97611.0,97610.0,0.3618]
[1733824894310,0.05129,97611.0,97610.0,0.3608]
[1733824894513,0.05129,97611.0,97610.0,0.3618]
[1733824896209,0.05129,97611.0,97610.0,0.3608]
[1733824898111,0.05129,97611.0,97603.0,0.24509105]
[1733824898112,0.41209,97611.0,97603.0,0.24509105]
[1733824898321,0.051216,97601.0,97600.0,0.24509105]
[1733824898512,0.051217,97599.0,97586.0,0.30614959]
[1733824898821,0.051222,97589.0,97582.0,0.051225]
[1733824899120,0.051221,97592.0,97590.0,0.051221]
[1733824899505,0.051221,97592.0,97591.0,0.00015046]
[1733824901514,0.3608,97595.0,97591.0,0.00015046]
[1733824901515,0.3608,97595.0,97593.0,0.051219]
[1733824901912,0.3608,97595.0,97594.0,4e-05]
[1733824904611,0.3608,97595.0,97594.0,0.00204]
[1733824905217,0.3608,97595.0,97594.0,0.00604]
[1733824907718,0.38087309,97595.0,97594.0,0.00604]
[1733824910820,0.0301,97600.0,97594.0,0.36684]
[1733824911124,0.00820232,97601.0,97600.0,0.051216]
[1733824911321,0.051212,97608.0,97594.0,0.36684]
[1733824911519,0.051212,97608.0,97604.0,0.051214]
[1733824911720,0.051212,97608.0,97607.0,4e-05]
[1733824912113,0.05989622,97608.0,97607.0,4e-05]
[1733824912823,0.00868422,97608.0,97607.0,4e-05]
[1733824913024,0.02013008,97611.0,97610.0,0.051211]
[1733824913417,0.02013008,97611.0,97610.0,0.051251]
[1733824917016,0.02113008,97611.0,97610.0,0.051251]
[1733824920229,0.02113008,97611.0,97610.0,0.09607036]
[1733824920839,0.02113008,97611.0,97610.0,0.051251]
[1733824922439,0.15325362,97619.0,97610.0,0.051251]
[1733824922440,0.12260432,97617.0,97610.0,0.051251]
[1733824922632,0.12260432,97620.0,97617.0,0.051207]
[1733824922925,0.12260432,97630.0,97619.0,0.051246]
[1733824923127,0.12260432,97632.0,97631.0,0.0512]
[1733824923323,0.12260432,97634.0,97629.0,0.03264]
[1733824923528,0.12260432,97634.0,97633.0,0.051194]
[1733824923830,0.12256609,97636.0,97631.0,0.36084]
[1733824924028,0.0087062,97641.0,97631.0,0.36084]
[1733824924227,7.227e-05,97643.0,97642.0,0.051189]
[1733824925145,7.227e-05,97643.0,97642.0,0.051229]
[1733824925328,0.0206584,97643.0,97642.0,0.051229]
[1733824925537,0.0304504,97643.0,97642.0,0.052229]
[1733824925925,0.0334504,97643.0,97642.0,0.053229]
[1733824927530,0.0334504,97643.0,97642.0,0.052229]
[1733824931939,0.0334504,97643.0,97642.0,0.00104]
[1733824934037,0.3034504,97643.0,97642.0,0.00104]
[1733824934430,0.0334504,97643.0,97642.0,0.00104]
[1733824936333,0.3334504,97643.0,97642.0,0.00104]
[1733824936543,0.051195,97631.0,97630.0,0.3608]
[1733824937940,0.054195,97631.0,97630.0,0.3618]
[1733824938342,0.06273603,97631.0,97630.0,0.3618]
[1733824938741,0.06373603,97631.0,97630.0,0.3618]
[1733824940738,0.06373603,97631.0,97630.0,0.001]
[1733824941438,0.15538813,97631.0,97630.0,0.001]
[1733824941638,0.06373603,97631.0,97616.0,0.0328]
[1733824941853,0.051202,97617.0,97616.0,0.0328]
[1733824942052,0.051202,97617.0,97616.0,0.00546593]
[1733824942239,0.051202,97617.0,97608.0,0.0632]
[1733824942741,8e-05,97616.0,97608.0,0.0632]
[1733824943445,0.051206,97609.0,97608.0,0.032]
[1733824943843,0.051286,97609.0,97608.0,0.032]
[1733824945845,0.051286,97609.0,97608.0,0.033]
[1733824946657,8e-05,97616.0,97608.0,0.033]
[1733824946658,8e-05,97616.0,97615.0,0.051203]
[1733824946857,8e-05,97616.0,97615.0,0.412003]
[1733824947046,0.051195,97632.0,97615.0,0.40564951]
[1733824947248,0.12256609,97640.0,97631.0,0.411995]
[1733824947550,0.051192,97637.0,97634.0,0.051193]
[1733824948053,0.051192,97637.0,97635.0,0.051193]
[1733824948254,0.051192,97637.0,97636.0,0.0301]
[1733824949746,0.052192,97637.0,97636.0,0.0301]
[1733824950142,0.057192,97637.0,97636.0,0.0628]
[1733824950748,0.057192,97637.0,97636.0,0.0638]
[1733824951454,0.056192,97637.0,97636.0,0.4246]
[1733824951648,0.057192,97637.0,97636.0,0.4246]
[1733824953849,0.13134455,97648.0,97636.0,0.4246]
[1733824953850,1.6e-07,97639.0,97637.0,0.051192]
[1733824954059,0.0918174,97658.0,97636.0,0.72572]
[1733824954251,0.1738303,97670.0,97636.0,0.72572]
[1733824954252,0.02057668,97670.0,97668.0,0.051175]
[1733824954445,0.02057668,97670.0,97657.0,0.3608]
[1733824954446,0.051173,97672.0,97669.0,0.3608]
[1733824954645,0.051173,97672.0,97669.0,0.36084]
[1733824954959,0.18385362,97694.0,97677.0,0.051171]
[1733824954960,0.051168,97682.0,97677.0,0.051171]
[1733824955255,0.051168,97682.0,97681.0,0.36084]
[1733824956245,0.00011703,97685.0,97681.0,0.412008]
[1733824956445,0.00011703,97685.0,97681.0,0.36084]
[1733824956649,0.051168,97683.0,97681.0,0.3608]
[1733824957651,0.051168,97683.0,97681.0,0.3618]
[1733824958159,0.051173,97673.0,97672.0,0.10078467]
[1733824958457,0.051173,97673.0,97671.0,0.3919]
[1733824958855,8e-05,97672.0,97671.0,0.3919]
[1733824960557,8e-05,97672.0,97671.0,0.443074]
[1733824961152,8e-05,97672.0,97671.0,0.444074]
[1733824961458,8e-05,97672.0,97671.0,0.3929]
[1733824967074,0.00011703,97685.0,97671.0,0.3929]
[1733824967369,0.051167,97684.0,97682.0,0.3608]
[1733824971261,0.1005,97700.0,97683.0,0.1457]
[1733824971581,0.0005,97700.0,97699.0,0.772799]
[1733824973172,0.051147,97724.0,97721.0,0.051148]
[1733824973367,0.00212,97731.0,97699.0,0.86734]
[1733824973368,0.051148,97720.0,97719.0,0.3608]
[1733824973666,0.051148,97720.0,97719.0,0.36092251]
[1733824974472,0.051228,97720.0,97719.0,0.36092251]
[1733824974672,0.044228,97720.0,97719.0,0.00112251]
[1733824974888,0.044228,97720.0,97690.0,0.46158467]
[1733824974889,0.051163,97691.0,97690.0,0.46158467]
[1733824975171,0.051163,97691.0,97690.0,0.3608]
[1733824975376,0.051243,97691.0,97690.0,0.3608]
[1733824975860,0.051243,97691.0,97690.0,0.36088336]
[1733824976559,0.052243,97691.0,97690.0,0.36088336]
[1733824977362,0.05343335,97691.0,97690.0,0.36088336]
[1733824978559,0.05366148,97691.0,97690.0,8.336e-05]
[1733824978968,0.05388961,97691.0,97690.0,8.336e-05]
[1733824980765,0.05411774,97691.0,97690.0,8.336e-05]
[1733824982076,0.05434587,97691.0,97690.0,8.336e-05]
[1733824983269,0.00318287,97691.0,97681.0,0.04795136]
[1733824984265,8e-05,97682.0,97681.0,0.04895136]
[1733824984466,8e-05,97682.0,97681.0,0.40988381]
[1733824984974,8e-05,97682.0,97681.0,0.41088381]
[1733824985191,0.00218287,97682.0,97681.0,0.40988381]
[1733824985369,0.00218287,97682.0,97681.0,0.41088381]
[1733824986272,0.00218287,97682.0,97681.0,0.45566485]
[1733824986774,0.0022,97682.0,97681.0,0.41088381]
[1733824987875,0.0022,97682.0,97681.0,0.45566497]
[1733824988268,0.00242783,97682.0,97681.0,0.40771361]
[1733824988987,0.00265566,97682.0,97681.0,0.40771361]
[1733824989465,0.00288349,97682.0,97681.0,0.40771361]
[1733824991380,0.00288349,97682.0,97681.0,0.36293245]
[1733824994375,0.00288349,97682.0,97681.0,0.36093245]
[1733824994586,0.00288349,97682.0,97681.0,0.36193245]
[1733824997578,0.00288349,97682.0,97681.0,0.40671432]
[1733824997988,0.00288349,97682.0,97681.0,0.36193245]
[1733825002275,0.00288349,97682.0,97681.0,0.40671549]
[1733825002481,0.05405149,97682.0,97681.0,0.40671549]
[1733825003491,0.05405149,97682.0,97681.0,0.65004558]
[1733825004284,0.05405149,97682.0,97681.0,0.40671549]
[1733825004486,0.05405149,97682.0,97681.0,0.40571549]
[1733825004785,0.05405149,97682.0,97681.0,0.40671549]
[1733825006405,0.00288349,97682.0,97681.0,0.40671549]
[1733825006693,0.00288349,97682.0,97681.0,0.68599034]
[1733825007482,0.00288349,97682.0,97681.0,0.99245361]
[1733825007700,0.00288349,97682.0,97681.0,0.36513117]
[1733825008991,0.00288349,97682.0,97681.0,0.7163746]
[1733825009892,0.00288349,97682.0,97681.0,0.40991421]
[1733825010698,0.00288349,97682.0,97681.0,0.36513117]
[1733825012495,0.00288349,97682.0,97681.0,0.40991516]
[1733825014700,0.00288349,97682.0,97681.0,0.40671644]
[1733825014886,0.00288349,97682.0,97681.0,0.40991529]
[1733825019801,0.00288349,97682.0,97681.0,0.40671644]
[1733825020204,0.00288349,97682.0,97681.0,0.40571644]
[1733825020500,0.00288349,97682.0,97681.0,0.40671644]
[1733825021502,0.00288349,97682.0,97681.0,0.40991526]
[1733825025108,0.15325362,97691.0,97682.0,0.1457]
[1733825025402,0.21491496,97720.0,97682.0,0.1457]
[1733825025403,0.06601818,97730.0,97696.0,0.051161]
[1733825025609,0.08223892,97729.0,97726.0,0.3608]
[1733825025792,0.08223892,97729.0,97727.0,0.05434382]
[1733825025793,0.0325,97729.0,97727.0,0.05434382]
[1733825025998,0.0325,97729.0,97728.0,0.2479783]
[1733825026196,0.0325,97729.0,97728.0,0.00319882]
[1733825026413,0.08404,97731.0,97729.0,0.051144]
[1733825026703,0.08404,97731.0,97730.0,0.00319882]
[1733825026910,0.00212,97731.0,97730.0,0.01918522]
[1733825027122,0.00212,97731.0,97730.0,0.01931015]
[1733825027322,0.0332,97748.0,97731.0,0.051142]
[1733825027497,0.0332,97748.0,97746.0,0.051135]
[1733825027696,0.0333,97759.0,97747.0,0.01918522]
[1733825027897,0.0333,97759.0,97749.0,0.3608]
[1733825028194,0.084428,97759.0,97758.0,4e-05]
[1733825028405,0.084428,97759.0,97758.0,0.0160264]
[1733825028406,0.0333,97759.0,97758.0,0.0160264]
[1733825028603,0.11522,97759.0,97758.0,0.01922296]
[1733825029301,0.08192,97759.0,97758.0,0.0160264]
[1733825029905,0.08292,97759.0,97758.0,0.0160264]
[1733825030605,0.08292,97759.0,97758.0,0.0170264]
[1733825035603,0.08292,97759.0,97749.0,0.10047683]
[1733825035604,0.051133,97750.0,97749.0,0.10047683]
[1733825035911,0.051133,97750.0,97733.0,0.18286935]
[1733825035912,0.051137,97742.0,97740.0,0.10047683]
[1733825036108,0.051137,97742.0,97741.0,0.36399684]
[1733825036304,0.051217,97742.0,97741.0,0.36399684]
[1733825036499,0.051217,97742.0,97741.0,0.00319684]
[1733825037006,0.128137,97742.0,97741.0,0.00319684]
[1733825037407,0.129137,97742.0,97741.0,0.00319684]
[1733825038306,0.13027365,97742.0,97741.0,0.00319684]
[1733825038701,0.05335365,97742.0,97741.0,0.00319684]
[1733825039610,0.0535811,97742.0,97741.0,0.00319684]
[1733825041813,0.05380855,97742.0,97741.0,0.00319684]
[1733825045021,0.05403585,97742.0,97741.0,0.00319684]
[1733825046316,0.052217,97742.0,97741.0,0.00319684]
[1733825046518,0.05426315,97742.0,97741.0,0.00319684]
[1733825047011,0.05449045,97742.0,97741.0,0.00319684]
[1733825047611,0.05449045,97742.0,97741.0,0.01918109]
[1733825051219,0.05449045,97742.0,97741.0,0.20205044]
[1733825051421,0.05449045,97742.0,97741.0,0.01918109]
[1733825052220,0.00335345,97742.0,97741.0,0.01918109]
[1733825052418,0.00358091,97742.0,97741.0,0.00319684]
[1733825052616,0.13163791,97742.0,97741.0,0.00319684]
[1733825052822,0.13163791,97742.0,97740.0,0.18236466]
[1733825053037,0.13163791,97742.0,97741.0,0.00319691]
[1733825053228,0.13155791,97742.0,97741.0,0.18556157]
[1733825053530,0.13155791,97742.0,97741.0,0.00319691]
[1733825055337,0.13155791,97742.0,97741.0,0.32119407]
[1733825056027,0.13155791,97742.0,97741.0,0.36595034]
[1733825056236,0.13155791,97742.0,97738.0,0.36716923]
[1733825056237,0.13155791,97742.0,97738.0,0.3053513]
[1733825056428,0.07792,97742.0,97741.0,0.24436009]
[1733825056628,0.07792,97742.0,97730.0,0.00016493]
[1733825056629,0.051143,97731.0,97730.0,0.00016493]
[1733825056931,0.051223,97731.0,97730.0,0.31652383]
[1733825057645,0.40340417,97731.0,97720.0,0.36716923]
[1733825057823,0.40340417,97731.0,97727.0,0.18333745]
[1733825057824,0.051144,97728.0,97727.0,0.18333745]
[1733825058022,0.051153,97710.0,97709.0,0.01099635]
[1733825058234,0.051153,97710.0,97709.0,0.32552472]
[1733825058440,0.051233,97710.0,97709.0,0.01099635]
[1733825058628,0.051233,97710.0,97709.0,0.0111192]
[1733825058833,0.051233,97710.0,97709.0,0.32202491]
[1733825059129,0.051233,97710.0,97709.0,0.31802856]
[1733825059534,0.051233,97710.0,97709.0,0.00712285]
[1733825061656,0.051158,97702.0,97697.0,0.18300922]
[1733825061835,0.051161,97696.0,97694.0,0.18300922]
[1733825062043,0.051162,97694.0,97692.0,0.18300922]
[1733825062443,0.051163,97691.0,97690.0,0.18300922]
[1733825062739,0.051163,97692.0,97690.0,9.854e-05]
[1733825063239,0.051163,97692.0,97691.0,4e-05]
[1733825064628,0.082063,97692.0,97691.0,4e-05]
[1733825065472,0.082063,97692.0,97668.0,0.051175]
[1733825065473,0.051172,97676.0,97668.0,0.23418422]
[1733825065670,0.3608,97686.0,97668.0,0.23418422]
[1733825065856,0.10047683,97680.0,97667.0,0.18300922]
[1733825066143,0.051175,97670.0,97661.0,0.59498822]
[1733825066447,8e-05,97668.0,97662.0,7.237e-05]
[1733825066943,8e-05,97668.0,97664.0,0.051177]
[1733825067736,8e-05,97668.0,97662.0,7.237e-05]
[1733825067937,8e-05,97668.0,97667.0,0.004]
[1733825068551,8e-05,97668.0,97667.0,0.00319922]
[1733825069252,8e-05,97668.0,97667.0,0.00619922]
[1733825070244,8e-05,97668.0,97667.0,0.00919922]
[1733825070844,8e-05,97668.0,97667.0,0.01019922]
[1733825071064,8e-05,97668.0,97667.0,0.00719922]
[1733825071241,8e-05,97668.0,97667.0,0.01019922]
[1733825073646,8e-05,97668.0,97667.0,0.00919922]
[1733825074654,8e-05,97668.0,97667.0,0.00519922]
[1733825074857,8e-05,97668.0,97667.0,0.00819922]
[1733825075553,8e-05,97668.0,97667.0,0.01969387]
[1733825075750,8e-05,97668.0,97667.0,0.00519922]
[1733825075947,8e-05,97668.0,97667.0,0.00819922]
[1733825076355,0.051165,97688.0,97667.0,0.00819922]
[1733825076553,0.05106875,97692.0,97690.0,0.051164]
[1733825076554,0.051163,97692.0,97690.0,0.051164]
[1733825076851,0.051161,97697.0,97692.0,0.051163]
[1733825077057,0.051161,97697.0,97692.0,0.05436163]
[1733825077254,0.051161,97697.0,97692.0,0.05440163]
[1733825077958,0.00808552,97693.0,97692.0,0.05540163]
[1733825078550,0.00108552,97693.0,97692.0,0.05440163]
[1733825080046,0.00108552,97693.0,97692.0,0.41520163]
[1733825080460,8.552e-05,97693.0,97692.0,0.41520163]
[1733825080659,8.552e-05,97693.0,97692.0,0.41920163]
[1733825081570,8.552e-05,97693.0,97692.0,0.416003]
[1733825083068,8.552e-05,97693.0,97692.0,0.41920138]
[1733825083354,8.552e-05,97693.0,97692.0,0.41720138]
[1733825083562,8.552e-05,97693.0,97692.0,0.41920138]
[1733825084759,8.552e-05,97693.0,97692.0,0.416003]
[1733825086047,8.552e-05,97693.0,97692.0,0.41920139]
[1733825087463,8.552e-05,97693.0,97692.0,0.41720139]
[1733825087657,8.552e-05,97693.0,97692.0,0.41920139]
[1733825087870,8.552e-05,97693.0,97692.0,0.36803839]
[1733825088169,0.84008552,97693.0,97692.0,0.36803839]
[1733825089168,8.552e-05,97693.0,97692.0,0.36803839]
[1733825089759,0.01144119,97693.0,97692.0,0.36803839]
[1733825089961,0.01144119,97693.0,97692.0,0.00723839]
[1733825090864,0.051166,97686.0,97684.0,0.18311915]
[1733825091066,0.0642,97685.0,97683.0,0.18311915]
[1733825091373,0.051167,97684.0,97682.0,0.3608]
[1733825091763,8e-05,97683.0,97682.0,0.3608]
[1733825092871,8e-05,97683.0,97682.0,0.18311915]
[1733825093083,0.051168,97682.0,97680.0,0.18311915]
[1733825093276,0.051168,97682.0,97662.0,7.237e-05]
[1733825093277,0.051169,97680.0,97679.0,0.18311915]
[1733825093573,0.051169,97680.0,97666.0,0.30476096]
[1733825093574,0.051169,97680.0,97678.0,0.18311915]
[1733825093873,0.051249,97680.0,97678.0,0.18311915]
[1733825094169,0.03298,97679.0,97666.0,0.051176]
[1733825094570,8e-05,97667.0,97666.0,0.051176]
[1733825095175,8e-05,97667.0,97666.0,0.09596409]
[1733825095371,8e-05,97667.0,97666.0,0.40072505]
[1733825095882,8e-05,97667.0,97666.0,0.09596409]
[1733825096081,8e-05,97667.0,97666.0,0.051176]
[1733825096369,8e-05,97667.0,97666.0,0.055176]
[1733825096774,8e-05,97667.0,97666.0,0.051176]
[1733825096974,8e-05,97667.0,97666.0,0.055176]
[1733825097283,8e-05,97667.0,97666.0,0.058176]
[1733825099472,0.01119582,97667.0,97666.0,0.058176]
[1733825099777,0.01119582,97667.0,97666.0,0.10296612]
[1733825100572,8e-05,97667.0,97666.0,0.10296612]
[1733825101485,8e-05,97667.0,97666.0,0.058176]
[1733825102783,8e-05,97667.0,97666.0,0.06137519]
[1733825104089,8e-05,97667.0,97666.0,0.41678558]
[1733825104293,8e-05,97685.0,97684.0,0.051167]
[1733825104483,8e-05,97685.0,97684.0,0.41516619]
[1733825104881,8e-05,97685.0,97684.0,1.07579278]
[1733825105083,8e-05,97685.0,97684.0,0.76536375]
[1733825105279,8e-05,97685.0,97684.0,0.41520619]
[1733825105486,8e-05,97685.0,97684.0,0.72062439]
[1733825105888,0.00408,97685.0,97684.0,1.03098929]
[1733825106101,0.00508,97685.0,97684.0,1.1368327]
[1733825106282,8.552e-05,97693.0,97692.0,0.051163]
[1733825106487,0.111553,97712.0,97707.0,0.051155]
[1733825106680,0.111553,97712.0,97709.0,0.3608]
[1733825106681,0.051153,97711.0,97709.0,0.3608]
[1733825106890,0.0604,97712.0,97710.0,0.00319919]
[1733825107087,0.01121355,97723.0,97711.0,0.00319919]
[1733825107289,0.01121355,97723.0,97722.0,0.051147]
[1733825107492,0.01121355,97723.0,97722.0,0.05443123]
[1733825107707,7.632e-05,97734.0,97733.0,0.051141]
[1733825107889,7.632e-05,97734.0,97733.0,0.41514019]
[1733825108087,7.632e-05,97734.0,97733.0,0.41518019]
[1733825109793,0.00407632,97734.0,97733.0,0.41518019]
[1733825110290,0.00407632,97734.0,97733.0,0.59775929]
[1733825111292,0.00407632,97734.0,97733.0,0.41518019]
[1733825111795,0.00407632,97734.0,97733.0,0.00323919]
[1733825112186,0.84407632,97734.0,97733.0,4e-05]
[1733825112385,0.84407632,97734.0,97733.0,0.00323704]
[1733825112593,0.84407632,97734.0,97722.0,0.36088504]
[1733825112594,0.051147,97723.0,97722.0,8.504e-05]
[1733825112994,0.051227,97723.0,97722.0,8.504e-05]
[1733825113786,0.051227,97723.0,97722.0,0.00108504]
[1733825114782,0.051227,97723.0,97706.0,0.3608]
[1733825114985,0.051154,97709.0,97706.0,0.3608]
[1733825115198,8e-05,97707.0,97706.0,0.411955]
[1733825116009,8e-05,97707.0,97706.0,0.41304958]
[1733825116596,0.00108,97707.0,97706.0,0.41904958]
[1733825117287,0.00108,97707.0,97706.0,0.42304958]
[1733825118695,8e-05,97707.0,97706.0,0.41604958]
[1733825118892,0.00108,97707.0,97706.0,0.42204958]
[1733825119888,8e-05,97707.0,97706.0,0.41604958]
[1733825120096,0.00108,97707.0,97706.0,0.42204958]
[1733825121791,0.00108,97707.0,97706.0,0.41804958]
[1733825122095,0.00108,97707.0,97706.0,0.42204958]
[1733825123395,0.00108,97707.0,97706.0,0.41804958]
[1733825123600,0.00108,97707.0,97706.0,0.42204958]
[1733825124694,0.00108,97707.0,97706.0,0.42524729]
[1733825125400,0.00108,97707.0,97706.0,0.55655915]
[1733825125595,0.00108,97707.0,97706.0,0.37409229]
[1733825125991,0.06368,97707.0,97706.0,0.37409229]
[1733825126300,0.06468,97707.0,97706.0,0.01009458]
[1733825127691,0.06368,97707.0,97706.0,0.00409458]
[1733825128300,0.06368,97707.0,97706.0,0.0072929]
[1733825128301,0.0744859,97707.0,97706.0,0.0072929]
[1733825128496,0.0744859,97707.0,97706.0,0.0032929]
[1733825128697,0.0744859,97707.0,97706.0,0.0052929]
[1733825128898,0.0744859,97707.0,97706.0,0.00209458]
[1733825129098,0.0744859,97707.0,97706.0,0.0052929]
[1733825129796,0.0744859,97707.0,97706.0,0.0032929]
[1733825132606,0.0754859,97707.0,97706.0,0.0032929]
[1733825134698,0.1266409,97707.0,97706.0,0.003293]
[1733825136210,0.1266409,97707.0,97706.0,9.458e-05]
[1733825137105,0.59909454,97707.0,97706.0,5.8e-07]
[1733825137304,0.59909454,97707.0,97671.0,0.1457]
[1733825137305,0.051167,97684.0,97683.0,0.18246686]
[1733825137507,0.051167,97684.0,97683.0,0.00319885]
[1733825137710,0.051175,97669.0,97668.0,0.18246686]
[1733825137895,0.05117,97679.0,97668.0,0.0031993]
[1733825138095,0.051177,97665.0,97664.0,0.18246686]
[1733825138293,0.051177,97665.0,97664.0,0.00328078]
[1733825138498,0.051257,97665.0,97664.0,0.00328078]
[1733825138814,0.051257,97665.0,97664.0,8.146e-05]
[1733825138996,0.051257,97665.0,97664.0,0.00328078]
[1733825139307,0.051257,97665.0,97664.0,0.00628078]
[1733825140398,0.051257,97665.0,97664.0,0.01128078]
[1733825141194,0.05134356,97665.0,97664.0,0.01128078]
[1733825141395,0.05134356,97665.0,97664.0,0.00828078]
[1733825141606,0.05134356,97665.0,97664.0,0.01128078]
[1733825141813,0.05134356,97665.0,97664.0,0.01028078]
[1733825142001,0.89134356,97665.0,97664.0,0.01028078]
[1733825142205,0.89134356,97665.0,97664.0,0.00708146]
[1733825143698,0.05134356,97665.0,97664.0,0.00708146]
[1733825144305,0.89134356,97665.0,97664.0,0.00708146]
[1733825145404,0.05134356,97665.0,97664.0,0.00708146]
[1733825145906,1.19134356,97665.0,97636.0,0.18266323]
[1733825146108,0.3608,97656.0,97641.0,0.3608]
[1733825146409,0.10047683,97651.0,97641.0,0.3608]
[1733825146699,0.3608,97656.0,97642.0,0.00012135]
[1733825146700,0.051187,97647.0,97642.0,0.00012135]
[1733825147296,0.051188,97644.0,97642.0,0.00012135]
[1733825147622,0.051188,97644.0,97643.0,0.00320016]
[1733825148808,0.054188,97644.0,97643.0,0.00320016]
[1733825149006,0.054188,97644.0,97642.0,0.00012135]
[1733825149703,0.055188,97644.0,97642.0,0.00012135]
[1733825150502,0.06606379,97644.0,97642.0,0.00012135]
[1733825151003,0.06706379,97644.0,97642.0,0.00012135]
[1733825151207,0.06606379,97644.0,97642.0,0.00012135]
[1733825151406,0.84,97643.0,97642.0,0.00012135]
[1733825151602,0.84,97643.0,97616.0,0.01119674]
[1733825151603,0.10238,97641.0,97616.0,0.01119674]
[1733825151802,0.0512,97621.0,97617.0,0.00320079]
[1733825152005,0.0512,97621.0,97618.0,0.00320079]
[1733825152309,0.0512,97621.0,97619.0,0.00320079]
[1733825152502,0.0512,97621.0,97620.0,0.00320079]
[1733825152704,0.0512,97621.0,97620.0,0.00329089]
[1733825153604,0.0512,97621.0,97620.0,0.00329112]
[1733825154404,0.0512,97621.0,97620.0,0.00329115]
[1733825154801,0.0512,97621.0,97620.0,0.0010901]
[1733825155005,0.0512,97621.0,97620.0,0.00429119]
[1733825155217,0.0512,97621.0,97620.0,0.0010901]
[1733825155711,0.0512,97621.0,97620.0,0.0020901]
[1733825156304,0.0512,97621.0,97600.0,0.1]
[1733825156305,0.05121,97602.0,97600.0,0.1]
[1733825156498,0.05121,97602.0,97601.0,0.00320127]
[1733825156907,0.3608,97614.0,97601.0,0.00320127]
[1733825157111,0.3608,97614.0,97602.0,0.00320127]
[1733825157300,0.051209,97604.0,97603.0,0.00320127]
[1733825158417,0.051209,97604.0,97602.0,0.009]
[1733825158606,0.051209,97604.0,97603.0,0.00320163]
[1733825158806,0.052209,97604.0,97603.0,0.008]